fUSD/lending_fUSD_20240416
["ID","MTS","AMOUNT","RATE_DAILY","PERIOD"]
[322717369,1713228809307,-1040.39,0.00020896,2]
[322717370,1713228809317,-1130.45,0.00020896,2]
[322717371,1713228809326,-500.0,0.00020896,2]
[322717372,1713228809335,-500.0,0.00020896,2]
[322717373,1713228809345,-1237.39,0.00020896,2]
[322717374,1713228809354,-2337.81,0.00020896,2]
[322717375,1713228809363,-500.0,0.00020896,2]
[322717376,1713228809372,-2732.84,0.00020896,2]
[322717377,1713228809381,-500.0,0.00020896,2]
[322717378,1713228809391,-2704.91,0.00020896,2]
[322717379,1713228809400,-500.0,0.00020896,2]
[322717380,1713228809415,-1140.26,0.00020896,2]
[322717381,1713228809436,-500.0,0.00020896,2]
[322717382,1713228809449,-548.74420317,0.00020896,2]
[322717383,1713228809459,-2820.09,0.00020896,2]
[322717384,1713228809469,-500.0,0.00020896,2]
[322717385,1713228809477,-827.01,0.00020896,2]
[322717386,1713228809486,-1761.28,0.00020896,2]
[322717387,1713228809495,-500.0,0.00020896,2]
[322717388,1713228809504,-564.62,0.00020896,2]
[322717389,1713228809518,-1146.92,0.00020896,2]
[322717390,1713228809527,-1391.11,0.00020896,2]
[322717391,1713228809537,-4411.48,0.00020896,2]
[322717392,1713228809546,-639.91,0.00020896,2]
[322717393,1713228809555,-500.0,0.00020896,2]
[322717394,1713228809565,-500.0,0.00020896,2]
[322717395,1713228809574,-1475.43,0.00020896,2]
[322717396,1713228809582,-500.0,0.00020896,2]
[322717397,1713228809592,-1744.76,0.00020896,2]
[322717398,1713228809601,-500.0,0.00020896,2]
[322717399,1713228809610,-674.63,0.00020896,2]
[322717400,1713228809619,-1074.59,0.00020896,2]
[322717401,1713228809629,-1390.8,0.00020896,2]
[322717402,1713228809637,-531.66683749,0.00020896,2]
[322717403,1713228809646,-500.0,0.00020896,2]
[322717404,1713228809655,-786.35,0.00020896,2]
[322717405,1713228809664,-825.37,0.00020896,2]
[322717406,1713228809673,-1157.68,0.00020896,2]
[322717407,1713228809682,-1116.82,0.00020896,2]
[322717408,1713228809690,-500.0,0.00020896,2]
[322717409,1713228809699,-500.0,0.00020896,2]
[322717410,1713228809708,-2736.41,0.00020896,2]
[322717411,1713228809718,-1064.37,0.00020896,2]
[322717412,1713228809727,-1051.67,0.00020896,2]
[322717413,1713228809736,-500.0,0.00020896,2]
[322717414,1713228809745,-637.74,0.00020896,2]
[322717415,1713228809754,-500.0,0.00020896,2]
[322717416,1713228809765,-1643.84,0.00020896,2]
[322717417,1713228809773,-1637.39,0.00020896,2]
[322717418,1713228809783,-1256.6,0.00020896,2]
[322717419,1713228809792,-500.0,0.00020896,2]
[322717420,1713228809801,-500.0,0.00020896,2]
[322717421,1713228809811,-1665.03,0.00020896,2]
[322717422,1713228809824,-523.25,0.00020896,2]
[322717423,1713228809833,-795.93,0.00020896,2]
[322717424,1713228809842,-852.13,0.00020896,2]
[322717425,1713228809851,-3377.04,0.00020896,2]
[322717426,1713228809861,-500.0,0.00020896,2]
[322717427,1713228809870,-718.44,0.00020896,2]
[322717428,1713228809879,-500.0,0.00020896,2]
[322717429,1713228809887,-500.0,0.00020896,2]
[322717430,1713228809897,-500.0,0.00020896,2]
[322717431,1713228809906,-550.17,0.00020896,2]
[322717432,1713228809915,-2051.23,0.00020896,2]
[322717433,1713228809925,-500.0,0.00020896,2]
[322717434,1713228809934,-500.0,0.00020896,2]
[322717435,1713228809943,-540.94,0.00020896,2]
[322717436,1713228809953,-500.0,0.00020896,2]
[322717437,1713228809962,-500.0,0.00020896,2]
[322717438,1713228809971,-872.9,0.00020896,2]
[322717439,1713228809981,-2147.23,0.00020896,2]
[322717440,1713228809991,-500.0,0.00020896,2]
[322717441,1713228810002,-500.0,0.00020896,2]
[322717442,1713228810012,-4226.46,0.00020896,2]
[322717443,1713228810022,-739.73,0.00020896,2]
[322717444,1713228810031,-3391.63,0.00020896,2]
[322717445,1713228810040,-500.0,0.00020896,2]
[322717446,1713228810050,-888.11,0.00020896,2]
[322717447,1713228810059,-500.0,0.00020896,2]
[322717448,1713228810068,-4945.52,0.00020896,2]
[322717449,1713228810077,-500.0,0.00020896,2]
[322717450,1713228810087,-653.68,0.00020896,2]
[322717451,1713228810097,-500.0,0.00020896,2]
[322717452,1713228810106,-500.0,0.00020896,2]
[322717453,1713228810115,-533.19,0.00020896,2]
[322717454,1713228810127,-3027.04,0.00020896,2]
[322717455,1713228810136,-523.16,0.00020896,2]
[322717456,1713228810145,-909.24,0.00020896,2]
[322717457,1713228810154,-500.0,0.00020896,2]
[322717458,1713228810163,-1182.16,0.00020896,2]
[322717459,1713228810172,-925.78,0.00020896,2]
[322717460,1713228810181,-1742.97,0.00020896,2]
[322717461,1713228810190,-500.0,0.00020896,2]
[322717462,1713228810200,-500.0,0.00020896,2]
[322717463,1713228810209,-1137.76,0.00020896,2]
[322717464,1713228810218,-500.0,0.00020896,2]
[322717465,1713228810227,-500.0,0.00020896,2]
[322717466,1713228810236,-500.0,0.00020896,2]
[322717467,1713228810246,-500.0,0.00020896,2]
[322717468,1713228810255,-500.0,0.00020896,2]
[322717469,1713228810266,-585.27,0.00020896,2]
[322717470,1713228810274,-1042.63,0.00020896,2]
[322717471,1713228810284,-500.0,0.00020896,2]
[322717472,1713228810293,-515.75,0.00020896,2]
[322717473,1713228810302,-500.0,0.00020896,2]
[322717474,1713228810311,-766.97,0.00020896,2]
[322717475,1713228810320,-1307.39,0.00020896,2]
[322717476,1713228810329,-500.0,0.00020896,2]
[322717477,1713228810338,-949.4,0.00020896,2]
[322717478,1713228810347,-500.65,0.00020896,2]
[322717479,1713228810356,-1733.3,0.00020896,2]
[322717480,1713228810366,-741.27,0.00020896,2]
[322717481,1713228810376,-500.0,0.00020896,2]
[322717482,1713228810385,-1434.18,0.00020896,2]
[322717483,1713228810394,-500.0,0.00020896,2]
[322717484,1713228810404,-827.99,0.00020896,2]
[322717485,1713228810412,-822.07,0.00020896,2]
[322717486,1713228810421,-500.0,0.00020896,2]
[322717487,1713228810430,-2156.99,0.00020896,2]
[322717488,1713228810439,-899.17,0.00020896,2]
[322717489,1713228810449,-560.5,0.00020896,2]
[322717490,1713228810457,-602.28,0.00020896,2]
[322717491,1713228810467,-844.44,0.00020896,2]
[322717492,1713228810476,-500.0,0.00020896,2]
[322717493,1713228810485,-922.38,0.00020896,2]
[322717494,1713228810494,-544.3453416,0.00020896,2]
[322717495,1713228810503,-500.0,0.00020896,2]
[322717496,1713228810514,-1588.68,0.00020896,2]
[322717497,1713228810522,-500.0,0.00020896,2]
[322717498,1713228810531,-500.0,0.00020896,2]
[322717499,1713228810540,-713.27,0.00020896,2]
[322717500,1713228810549,-2402.94,0.00020896,2]
[322717501,1713228810558,-500.0,0.00020896,2]
[322717502,1713228810567,-1204.65,0.00020896,2]
[322717503,1713228810576,-500.0,0.00020896,2]
[322717504,1713228810585,-1026.51,0.00020896,2]
[322717505,1713228810595,-500.0,0.00020896,2]
[322717506,1713228810604,-500.0,0.00020896,2]
[322717507,1713228810613,-500.0,0.00020896,2]
[322717508,1713228810622,-1315.58,0.00020896,2]
[322717509,1713228810631,-1796.39,0.00020896,2]
[322717510,1713228810640,-3220.5,0.00020896,2]
[322717511,1713228810648,-1159.61,0.00020896,2]
[322717512,1713228810658,-710.76,0.00020896,2]
[322717513,1713228810667,-603.51,0.00020896,2]
[322717514,1713228810676,-500.0,0.00020896,2]
[322717515,1713228810685,-1530.08,0.00020896,2]
[322717516,1713228810694,-616.95,0.00020896,2]
[322717517,1713228810703,-875.5,0.00020896,2]
[322717518,1713228810712,-500.0,0.00020896,2]
[322717519,1713228810721,-500.0,0.00020896,2]
[322717520,1713228810730,-641.33,0.00020896,2]
[322717521,1713228810739,-500.0,0.00020896,2]
[322717522,1713228810749,-3222.73,0.00020896,2]
[322717523,1713228810757,-6197.37,0.00020896,2]
[322717524,1713228810773,-500.0,0.00020896,2]
[322717525,1713228810782,-500.0,0.00020896,2]
[322717526,1713228810792,-505.88,0.00020896,2]
[322717527,1713228810802,-500.0,0.00020896,2]
[322717528,1713228810813,-868.3,0.00020896,2]
[322717529,1713228810822,-2882.27,0.00020896,2]
[322717530,1713228810835,-539.44,0.00020896,2]
[322717531,1713228810845,-500.0,0.00020896,2]
[322717532,1713228810854,-500.69,0.00020896,2]
[322717533,1713228810864,-587.05,0.00020896,2]
[322717534,1713228810874,-4848.37,0.00020896,2]
[322717535,1713228810883,-4420.78,0.00020896,2]
[322717536,1713228810893,-500.0,0.00020896,2]
[322717537,1713228810903,-500.0,0.00020896,2]
[322717538,1713228810913,-5446.0,0.00020896,2]
[322717539,1713228810922,-317.51128766,0.00020896,2]
[322717540,1713228810931,-2468.06,0.00020896,2]
[322717541,1713228810940,-170.34476432,0.00020896,2]
[322717542,1713228810949,-2809.86,0.00020896,2]
[322717543,1713228810959,-555.07,0.00020896,2]
[322717544,1713228810968,-2642.39,0.00020896,2]
[322717545,1713228810977,-500.0,0.00020896,2]
[322717546,1713228810987,-15232.09,0.00020896,2]
[322717547,1713228810996,-485.56699609,0.00020896,2]
[322717548,1713228811005,-15232.09,0.00020896,2]
[322717549,1713228811018,-15232.09,0.00020896,2]
[322717550,1713228811027,-15232.09,0.00020896,2]
[322717551,1713228811036,-15232.09,0.00020896,2]
[322717552,1713228811044,-15232.17010201,0.00020896,2]
[322717553,1713228811054,-500.0,0.00020896,2]
[322717554,1713228811063,-500.0,0.00020896,2]
[322717555,1713228811072,-500.0,0.00020896,2]
[322717556,1713228811081,-5985.12,0.00020896,2]
[322717557,1713228811090,-5985.12,0.00020896,2]
[322717558,1713228811099,-617.81,0.00020896,2]
[322717559,1713228811108,-5985.12,0.00020896,2]
[322717560,1713228811117,-5985.12,0.00020896,2]
[322717561,1713228811126,-500.0,0.00020896,2]
[322717562,1713228811135,-5985.12,0.00020896,2]
[322717563,1713228811144,-2801.33,0.00020896,2]
[322717564,1713228811154,-5985.25477454,0.00020896,2]
[322717565,1713228811163,-3214.86,0.00020896,2]
[322717566,1713228811173,-500.0,0.00020896,2]
[322717567,1713228811181,-1338.28,0.00020896,2]
[322717568,1713228811190,-1338.28,0.00020896,2]
[322717569,1713228811198,-5113.26,0.00020896,2]
[322717570,1713228811207,-1338.28,0.00020896,2]
[322717571,1713228811216,-1338.28,0.00020896,2]
[322717572,1713228811225,-1338.28,0.00020896,2]
[322717573,1713228811234,-1338.44,0.00020896,2]
[322717574,1713228811243,-1650.46,0.00020896,2]
[322717575,1713228811251,-500.0,0.00020896,2]
[322717576,1713228811263,-11914.43,0.00020896,2]
[322717577,1713228811272,-11914.43,0.00020896,2]
[322717578,1713228811281,-11914.43,0.00020896,2]
[322717579,1713228811290,-11914.43,0.00020896,2]
[322717580,1713228811300,-1075.66,0.00020896,2]
[322717581,1713228811310,-11914.43,0.00020896,2]
[322717582,1713228811319,-11914.64986982,0.00020896,2]
[322717583,1713228811327,-500.0,0.00020896,2]
[322717584,1713228811337,-181.90418351,0.00020896,2]
[322717585,1713228811346,-2867.47,0.00020896,2]
[322717586,1713228811356,-1353.06,0.00020896,2]
[322717587,1713228811365,-5737.62,0.00020896,2]
[322717588,1713228811374,-2052.03,0.00020896,2]
[322717589,1713228811383,-5737.62,0.00020896,2]
[322717590,1713228811393,-5737.62,0.00020896,2]
[322717591,1713228811402,-5737.62,0.00020896,2]
[322717592,1713228811412,-5737.62,0.00020896,2]
[322717593,1713228811421,-5737.63289778,0.00020896,2]
[322717594,1713228811431,-500.0,0.00020896,2]
[322717595,1713228811440,-3198.34,0.00020896,2]
[322717596,1713228811450,-500.0,0.00020896,2]
[322717597,1713228811460,-1608.25,0.00020896,2]
[322717598,1713228811470,-500.0,0.00020896,2]
[322717599,1713228811480,-500.0,0.00020896,2]
[322717600,1713228811489,-823.69,0.00020896,2]
[322717601,1713228811499,-500.0,0.00020896,2]
[322717602,1713228811509,-563.48,0.00020896,2]
[322717603,1713228811523,-1712.93,0.00020896,2]
[322717604,1713228811534,-500.0,0.00020896,2]
[322717605,1713228811545,-2590.9,0.00020896,2]
[322717606,1713228811556,-500.0,0.00020896,2]
[322717607,1713228811566,-3757.07,0.00020896,2]
[322717608,1713228811576,-3757.07,0.00020896,2]
[322717609,1713228811586,-3757.07,0.00020896,2]
[322717610,1713228811596,-3757.07,0.00020896,2]
[322717611,1713228811605,-3757.07,0.00020896,2]
[322717612,1713228811615,-3757.13,0.00020896,2]
[322717613,1713228811625,-2082.59,0.00020896,2]
[322717614,1713228811634,-1026.43,0.00020896,2]
[322717615,1713228811644,-3347.8,0.00020896,2]
[322717616,1713228811653,-3347.8,0.00020896,2]
[322717617,1713228811663,-3347.8,0.00020896,2]
[322717618,1713228811672,-3347.8,0.00020896,2]
[322717619,1713228811681,-500.0,0.00020896,2]
[322717620,1713228811691,-3347.8,0.00020896,2]
[322717621,1713228811700,-3348.0,0.00020896,2]
[322717622,1713228811711,-500.0,0.00020896,2]
[322717623,1713228811721,-731.88,0.00020896,2]
[322717624,1713228811730,-500.0,0.00020896,2]
[322717625,1713228811740,-3764.18,0.00020896,2]
[322717626,1713228811749,-3764.18,0.00020896,2]
[322717627,1713228811758,-732.54,0.00020896,2]
[322717628,1713228811773,-9152.49,0.00020896,2]
[322717629,1713228811783,-9152.49,0.00020896,2]
[322717630,1713228811793,-9152.49,0.00020896,2]
[322717631,1713228811803,-9152.49,0.00020896,2]
[322717632,1713228811815,-820.49,0.00020896,2]
[322717633,1713228811826,-9152.49,0.00020896,2]
[322717634,1713228811836,-9152.60501371,0.00020896,2]
[322717635,1713228811846,-4271.55,0.00020896,2]
[322717636,1713228811855,-4271.55,0.00020896,2]
[322717637,1713228811865,-3365.5,0.00020896,2]
[322717638,1713228811874,-801.16,0.00020896,2]
[322717639,1713228811884,-500.0,0.00020896,2]
[322717640,1713228811894,-1468.49,0.00020896,2]
[322717641,1713228811904,-2331.26,0.00020896,2]
[322717642,1713228811914,-592.98,0.00020896,2]
[322717643,1713228811923,-7124.58,0.00020896,2]
[322717644,1713228811932,-7124.58,0.00020896,2]
[322717645,1713228811942,-7124.58,0.00020896,2]
[322717646,1713228811951,-7124.58,0.00020896,2]
[322717647,1713228811961,-7124.58,0.00020896,2]
[322717648,1713228811971,-7124.80424387,0.00020896,2]
[322717649,1713228811980,-500.0,0.00020896,2]
[322717650,1713228811991,-2881.15,0.00020896,2]
[322717651,1713228812000,-500.0,0.00020896,2]
[322717652,1713228812009,-500.0,0.00020896,2]
[322717653,1713228812024,-613.54835461,0.00020896,2]
[322717654,1713228812034,-627.64,0.00020896,2]
[322717655,1713228812043,-2725.71,0.00020896,2]
[322717656,1713228812053,-500.0,0.00020896,2]
[322717657,1713228812062,-2576.48,0.00020896,2]
[322717658,1713228812070,-2576.48,0.00020896,2]
[322717659,1713228812079,-2576.48,0.00020896,2]
[322717660,1713228812088,-2576.48,0.00020896,2]
[322717661,1713228812098,-934.39,0.00020896,2]
[322717662,1713228812107,-2576.48,0.00020896,2]
[322717663,1713228812117,-2576.5544686,0.00020896,2]
[322717664,1713228812126,-1510.82,0.00020896,2]
[322717665,1713228812135,-658.66,0.00020896,2]
[322717666,1713228812144,-957.73,0.00020896,2]
[322717667,1713228812155,-1446.58,0.00020896,2]
[322717668,1713228812164,-6143.21,0.00020896,2]
[322717669,1713228812173,-6143.21,0.00020896,2]
[322717670,1713228812182,-6143.21,0.00020896,2]
[322717671,1713228812191,-6143.21,0.00020896,2]
[322717672,1713228812200,-6143.21,0.00020896,2]
[322717673,1713228812209,-6143.38362724,0.00020896,2]
[322717674,1713228812218,-500.0,0.00020896,2]
[322717675,1713228812227,-2068.39,0.00020896,2]
[322717676,1713228812237,-3620.97,0.00020896,2]
[322717677,1713228812246,-3620.97,0.00020896,2]
[322717678,1713228812254,-3620.97,0.00020896,2]
[322717679,1713228812266,-3620.97,0.00020896,2]
[322717680,1713228812274,-3620.97,0.00020896,2]
[322717681,1713228812283,-3621.01,0.00020896,2]
[322717682,1713228812292,-500.0,0.00020896,2]
[322717683,1713228812301,-500.0,0.00020896,2]
[322717684,1713228812310,-1727.37,0.00020896,2]
[322717685,1713228812319,-2941.35,0.00020896,2]
[322717686,1713228812327,-522.02,0.00020896,2]
[322717687,1713228812336,-6643.24,0.00020896,2]
[322717688,1713228812345,-6643.24,0.00020896,2]
[322717689,1713228812354,-6643.24,0.00020896,2]
[322717690,1713228812364,-6643.24,0.00020896,2]
[322717691,1713228812372,-6643.24,0.00020896,2]
[322717692,1713228812382,-6643.30281574,0.00020896,2]
[322717693,1713228812391,-500.0,0.00020896,2]
[322717694,1713228812400,-4779.95,0.00020896,2]
[322717695,1713228812409,-4779.95,0.00020896,2]
[322717696,1713228812418,-4779.95,0.00020896,2]
[322717697,1713228812427,-4779.95,0.00020896,2]
[322717698,1713228812437,-4779.95,0.00020896,2]
[322717699,1713228812446,-568.16,0.00020896,2]
[322717700,1713228812455,-4780.07543628,0.00020896,2]
[322717701,1713228812465,-212.47269299,0.00020896,2]
[322717702,1713228812474,-815.21,0.00020896,2]
[322717703,1713228812483,-1053.14,0.00020896,2]
[322717704,1713228812494,-3671.54,0.00020896,2]
[322717705,1713228812502,-500.0,0.00020896,2]
[322717706,1713228812515,-500.0,0.00020896,2]
[322717707,1713228812526,-1186.42,0.00020896,2]
[322717708,1713228812535,-993.69,0.00020896,2]
[322717709,1713228812544,-500.0,0.00020896,2]
[322717710,1713228812554,-500.0,0.00020896,2]
[322717711,1713228812563,-21087.91,0.00020896,2]
[322717712,1713228812572,-21087.91,0.00020896,2]
[322717713,1713228812582,-21087.91,0.00020896,2]
[322717714,1713228812590,-21087.91,0.00020896,2]
[322717715,1713228812599,-21087.91,0.00020896,2]
[322717716,1713228812608,-500.0,0.00020896,2]
[322717717,1713228812617,-21088.09194893,0.00020896,2]
[322717718,1713228812739,-1249.22,0.00020896,2]
[322717719,1713228812748,-539.11,0.00020896,2]
[322717720,1713228812756,-736.96,0.00020896,2]
[322717721,1713228812770,-500.0,0.00020896,2]
[322717722,1713228812780,-71151.92,0.00020896,2]
[322717723,1713228812788,-1146.71,0.00020896,2]
[322717724,1713228812797,-1449.89,0.00020896,2]
[322717725,1713228812806,-71151.92,0.00020896,2]
[322717726,1713228812816,-71151.92,0.00020896,2]
[322717727,1713228812826,-71151.92,0.00020896,2]
[322717728,1713228812839,-71151.92,0.00020896,2]
[322717729,1713228812849,-71152.0,0.00020896,2]
[322717730,1713228812858,-592.52,0.00020896,2]
[322717731,1713228812868,-1484.85,0.00020896,2]
[322717732,1713228812877,-761.77,0.00020896,2]
[322717733,1713228812887,-1312.47,0.00020896,2]
[322717734,1713228812896,-4758.27,0.00020896,2]
[322717735,1713228812906,-4758.27,0.00020896,2]
[322717736,1713228812916,-4758.27,0.00020896,2]
[322717737,1713228812926,-4758.27,0.00020896,2]
[322717738,1713228812935,-4758.27,0.00020896,2]
[322717739,1713228812944,-4758.33,0.00020896,2]
[322717740,1713228812954,-500.0,0.00020896,2]
[322717741,1713228812963,-1796.75,0.00020896,2]
[322717742,1713228812972,-1215.59,0.00020896,2]
[322717743,1713228812982,-500.0,0.00020896,2]
[322717744,1713228812991,-5306.72,0.00020896,2]
[322717745,1713228813000,-5306.72,0.00020896,2]
[322717746,1713228813010,-5306.72,0.00020896,2]
[322717747,1713228813023,-5306.72,0.00020896,2]
[322717748,1713228813032,-5306.72,0.00020896,2]
[322717749,1713228813042,-5306.81503579,0.00020896,2]
[322717750,1713228813051,-867.27,0.00020896,2]
[322717751,1713228813060,-532.73,0.00020896,2]
[322717752,1713228813069,-3828.86,0.00020896,2]
[322717753,1713228813078,-500.0,0.00020896,2]
[322717754,1713228813087,-500.0,0.00020896,2]
[322717755,1713228813096,-575.56,0.00020896,2]
[322717756,1713228813105,-763.15,0.00020896,2]
[322717757,1713228813115,-500.0,0.00020897,2]
[322717758,1713228813124,-500.0,0.00020897,2]
[322717759,1713228813134,-500.0,0.00020897,2]
[322717760,1713228813143,-500.0,0.00020897,2]
[322717761,1713228813152,-500.0,0.00020897,2]
[322717762,1713228813161,-500.0,0.00020897,2]
[322717763,1713228813171,-500.0,0.00020897,2]
[322717764,1713228813180,-500.0,0.00020897,2]
[322717765,1713228813189,-500.0,0.00020897,2]
[322717766,1713228813199,-500.0,0.00020897,2]
[322717767,1713228813208,-505.88258272,0.00020897,2]
[322717768,1713228813218,-876.18,0.00020897,2]
[322717769,1713228813227,-876.18,0.00020897,2]
[322717770,1713228813236,-876.18,0.00020897,2]
[322717771,1713228813245,-876.18,0.00020897,2]
[322717772,1713228813254,-876.18,0.00020897,2]
[322717773,1713228813266,-1388.48,0.00020897,2]
[322717774,1713228813276,-1388.48,0.00020897,2]
[322717775,1713228813285,-1388.48,0.00020897,2]
[322717776,1713228813294,-1388.48,0.00020897,2]
[322717777,1713228813303,-1388.48,0.00020897,2]
[322717778,1713228813313,-602.65,0.00020897,2]
[322717779,1713228813322,-602.65,0.00020897,2]
[322717780,1713228813331,-500.0,0.00020897,2]
[322717781,1713228813341,-602.65,0.00020897,2]
[322717782,1713228813350,-500.0,0.00020897,2]
[322717783,1713228813359,-602.65,0.00020897,2]
[322717784,1713228813368,-500.0,0.00020897,2]
[322717785,1713228813377,-602.65,0.00020897,2]
[322717786,1713228813387,-500.0,0.00020897,2]
[322717787,1713228813396,-500.0,0.00020897,2]
[322717788,1713228813405,-500.0,0.00020897,2]
[322717789,1713228813414,-500.0,0.00020897,2]
[322717790,1713228813424,-500.0,0.00020897,2]
[322717791,1713228813433,-500.0,0.00020897,2]
[322717792,1713228813442,-500.0,0.00020897,2]
[322717793,1713228813452,-500.0,0.00020897,2]
[322717794,1713228813461,-500.0,0.00020897,2]
[322717795,1713228813470,-500.0,0.00020897,2]
[322717796,1713228813480,-500.0,0.00020897,2]
[322717797,1713228813489,-500.0,0.00020897,2]
[322717798,1713228813498,-500.0,0.00020897,2]
[322717799,1713228813507,-500.0,0.00020897,2]
[322717800,1713228813521,-500.0,0.00020897,2]
[322717801,1713228813530,-500.0,0.00020897,2]
[322717802,1713228813539,-261.54448986,0.00020897,2]
[322717803,1713228813548,-840.69,0.00020897,2]
[322717804,1713228813558,-840.69,0.00020897,2]
[322717805,1713228813567,-840.69,0.00020897,2]
[322717806,1713228813576,-840.69,0.00020897,2]
[322717807,1713228813585,-840.69,0.00020897,2]
[322717808,1713228813595,-1153.57,0.00020897,2]
[322717809,1713228813604,-1153.57,0.00020897,2]
[322717810,1713228813613,-500.0,0.00020897,2]
[322717811,1713228813622,-1153.57,0.00020897,2]
[322717812,1713228813631,-500.0,0.00020897,2]
[322717813,1713228813641,-1153.57,0.00020897,2]
[322717814,1713228813650,-500.0,0.00020897,2]
[322717815,1713228813659,-500.0,0.00020897,2]
[322717816,1713228813668,-553.94783837,0.00020897,2]
[322717817,1713228813677,-1153.57,0.00020897,2]
[322717818,1713228813687,-500.0,0.00020897,2]
[322717819,1713228813697,-500.0,0.00020897,2]
[322717820,1713228813706,-500.0,0.00020897,2]
[322717821,1713228813715,-500.0,0.00020897,2]
[322717822,1713228813725,-500.0,0.00020897,2]
[322717823,1713228813735,-517.83,0.00020897,2]
[322717824,1713228813745,-517.83,0.00020897,2]
[322717825,1713228813754,-517.83,0.00020897,2]
[322717826,1713228813766,-517.83,0.00020897,2]
[322717827,1713228813775,-517.83,0.00020897,2]
[322717828,1713228813784,-1004.68,0.00020897,2]
[322717829,1713228813794,-1004.68,0.00020897,2]
[322717830,1713228813804,-1004.68,0.00020897,2]
[322717831,1713228813814,-1004.68,0.00020897,2]
[322717832,1713228813827,-1004.68,0.00020897,2]
[322717833,1713228813836,-500.0,0.00020897,2]
[322717834,1713228813846,-300.0,0.00020897,2]
[322717835,1713228813856,-300.0,0.00020897,2]
[322717836,1713228813865,-500.0,0.00020897,2]
[322717837,1713228813875,-300.0,0.00020897,2]
[322717838,1713228813884,-500.0,0.00020897,2]
[322717839,1713228813894,-300.0,0.00020897,2]
[322717840,1713228813904,-500.0,0.00020897,2]
[322717841,1713228813915,-300.0,0.00020897,2]
[322717842,1713228813924,-500.0,0.00020897,2]
[322717843,1713228813934,-500.0,0.00020897,2]
[322717844,1713228813943,-500.0,0.00020897,2]
[322717845,1713228813953,-500.0,0.00020897,2]
[322717846,1713228813963,-500.0,0.00020897,2]
[322717847,1713228813973,-159.14512091,0.00020897,2]
[322717848,1713228813983,-500.0,0.00020897,2]
[322717849,1713228813993,-177.60780345,0.00020897,2]
[322717850,1713228814002,-1442.47,0.00020897,2]
[322717851,1713228814013,-1442.47,0.00020897,2]
[322717852,1713228814023,-1442.47,0.00020897,2]
[322717853,1713228814032,-1442.47,0.00020897,2]
[322717854,1713228814041,-1442.47,0.00020897,2]
[322717855,1713228814051,-500.0,0.00020897,2]
[322717856,1713228814060,-500.0,0.00020897,2]
[322717857,1713228814070,-500.0,0.00020897,2]
[322717858,1713228814079,-372.44494429,0.00020897,2]
[322717859,1713228814088,-500.0,0.00020897,2]
[322717860,1713228814098,-500.0,0.00020897,2]
[322717861,1713228814108,-500.0,0.00020897,2]
[322717862,1713228814117,-500.0,0.00020897,2]
[322717863,1713228814126,-500.0,0.00020897,2]
[322717864,1713228814135,-500.0,0.00020897,2]
[322717865,1713228814145,-500.0,0.00020897,2]
[322717866,1713228814154,-500.0,0.00020897,2]
[322717867,1713228814163,-500.0,0.00020897,2]
[322717868,1713228814172,-500.0,0.00020897,2]